fUSD/lending_fUSD_20251027
["ID","MTS","AMOUNT","RATE_DAILY","PERIOD"]
[392521603,1761605964258,-211.43768727,0.00014995,2]
[392521605,1761605967275,-101.22886209,0.00014995,2]
[392521606,1761605967304,-140.26427095,0.00014995,2]
[392521607,1761605969157,-157.72998468,0.00014995,2]
[392521608,1761605973386,-180.31596083,0.00014995,2]
[392521609,1761605976841,418.3858848,0.000149,2]
[392521610,1761605977532,-21.68978354,0.00014995,2]
[392521611,1761605977561,-333.92714966,0.00014995,2]
[392521612,1761605980527,-166.07285034,0.00014995,2]
[392521613,1761605980555,-28.92714966,0.00014995,2]
[392521615,1761605983798,-190.82,0.00014995,2]
[392521616,1761605985566,-230.22874136,0.00014995,2]
[392521617,1761605988144,-50.02410898,0.00014995,2]
[392521618,1761605988180,-172.39332428,0.00014995,2]
[392521620,1761606004501,-269.73849016,0.00014994,2]
[392521621,1761606007931,-161.50393653,0.00014994,2]
[392521622,1761606009764,-295.1728612,0.00014994,2]
[392521623,1761606012608,-420.95310372,0.00014994,2]
[392521625,1761606015108,-52.63160839,0.00014994,2]
[392521626,1761606015135,-246.66907648,0.00014995,2]
[392521627,1761606017439,-80.93759924,0.00014995,2]
[392521628,1761606017466,-97.1504463,0.00014995,2]
[392521629,1761606034686,-191.81674096,0.00014995,2]
[392521632,1761606036791,-158.12137666,0.00014995,2]
[392521633,1761606038589,-52.91143608,0.00014995,2]
[392521634,1761606038618,-178.09861766,0.00014995,2]
[392521635,1761606041864,-206.6918696,0.00014994,2]
[392521636,1761606045495,-183.95421483,0.00014994,2]
[392521637,1761606047417,-109.35391557,0.00014994,2]
[392521638,1761606047446,-95.35250318,0.00014994,2]
[392521640,1761606063938,-160.0,0.00014993,2]
[392521641,1761606069997,-140.0,0.00014993,2]
[392521642,1761606070024,-29.88528075,0.00014994,2]
[392521643,1761606071583,381.0,0.00031507,120]
[392521644,1761606072352,-238.79215158,0.00014994,2]
[392521645,1761606076800,-135.97006449,0.00014994,2]
[392521646,1761606076827,-147.54347449,0.00014994,2]
[392521647,1761606076865,863.24389556,0.00014542,2]
[392521649,1761606078963,-196.77046906,0.00014994,2]
[392521650,1761606081105,-155.68605645,0.00014994,2]
[392521651,1761606081132,-243.71080694,0.00014994,2]
[392521652,1761606085519,-169.16396376,0.00014994,2]
[392521653,1761606088463,-176.83647341,0.00014994,2]
[392521654,1761606088494,-244.69208901,0.00014994,2]
[392521655,1761606093400,-255.30791099,0.00014994,2]
[392521656,1761606093432,-11.82548775,0.00014994,2]
[392521657,1761606093976,180.161,0.000147,2]
[392521658,1761606098794,-195.0,0.00014994,2]
[392521660,1761606101602,-195.00000016,0.00014994,2]
[392521661,1761606104168,-98.17451209,0.00014994,2]
[392521662,1761606104195,-189.36485023,0.00014994,2]
[392521663,1761606106479,-173.59118698,0.00014994,2]
[392521665,1761606123969,-300.0,0.00014993,2]
[392521666,1761606124009,-28.30053516,0.00014994,2]
[392521667,1761606126647,-167.86145599,0.00014994,2]
[392521668,1761606128087,151.0,0.00037151,50]
[392521669,1761606129646,-27.13854401,0.00014994,2]
[392521670,1761606129675,-108.74342763,0.00014994,2]
[392521671,1761606129709,-119.0033704,0.00014994,2]
[392521672,1761606132686,-380.9966296,0.00014994,2]
[392521673,1761606132718,-257.11746263,0.00014994,2]
[392521674,1761606135799,-242.88253737,0.00014994,2]
[392521675,1761606135827,-116.92202289,0.00014994,2]
[392521676,1761606138888,-279.46189932,0.00014994,2]
[392521677,1761606142001,-103.61607779,0.00014994,2]
[392521678,1761606142040,-307.34912798,0.00014994,2]
[392521679,1761606143852,-192.65087202,0.00014994,2]
[392521680,1761606143887,-111.24753899,0.00014994,2]
[392521682,1761606145676,-388.75246101,0.00014994,2]
[392521683,1761606145705,-42.72600499,0.00014994,2]
[392521684,1761606149596,-232.02522468,0.00014994,2]
[392521686,1761606153034,-175.36401277,0.00014995,2]
[392521687,1761606159821,-720.69,0.00027397,30]
[392521688,1761606159847,-151.0,0.00027397,31]
[392521689,1761606159876,-151.0,0.00030918,30]
[392521690,1761606159903,-500.0,0.00033151,30]
[392521691,1761606159929,-329.21,0.000333,30]
[392521692,1761606159954,-500.0,0.00033425,30]
[392521693,1761606159981,-500.0,0.00033699,30]
[392521694,1761606160006,-150.0,0.00034411,60]
[392521695,1761606160034,-150.0,0.00034419,60]
[392521696,1761606160059,-1600.0,0.00034461,120]
[392521697,1761606160083,-497.36,0.000345,60]
[392521698,1761606160107,-720.69,0.00034607,30]
[392521699,1761606160131,-329.21,0.000355,30]
[392521700,1761606160198,-329.21,0.000367,30]
[392521701,1761606160235,-999.0,0.00036986,120]
[392521702,1761606160262,-26256.57166632,0.00037,30]
[392521703,1761606160287,-1200.3,0.00037,120]
[392521704,1761606160312,-1280.96929463,0.000371,120]
[392521705,1761606160337,-300.0,0.0003711,50]
[392521706,1761606160364,-1475.0,0.0003711,50]
[392521707,1761606160388,-200.0,0.00037119,120]
[392521708,1761606160413,-222.0,0.0003712,120]
[392521709,1761606160438,-500.0,0.0003712,120]
[392521710,1761606160466,-500.0,0.0003712,120]
[392521711,1761606160491,-500.0,0.0003712,120]
[392521712,1761606160516,-500.0,0.0003712,120]
[392521713,1761606160540,-883.0,0.00037121,120]
[392521714,1761606160563,-215.41,0.00037121,50]
[392521715,1761606160586,-200.0,0.00037121,50]
[392521716,1761606160609,-200.0,0.00037121,120]
[392521717,1761606160634,-150.0,0.00037121,120]
[392521718,1761606160658,-150.0,0.00037121,50]
[392521719,1761606160682,-150.0,0.00037121,50]
[392521720,1761606160706,-150.0,0.00037121,60]
[392521721,1761606160730,-150.0,0.00037121,50]
[392521722,1761606160755,-200.0,0.00037121,50]
[392521723,1761606160779,-200.0,0.00037121,50]
[392521724,1761606160803,-1018.0,0.00037122,50]
[392521725,1761606160827,-500.0,0.00037127,120]
[392521726,1761606161043,-2000.0,0.00037127,120]
[392521727,1761606161070,-500.0,0.00037127,120]
[392521728,1761606161096,-500.0,0.00037127,120]
[392521729,1761606161123,-952271.37903905,0.00037135,50]
[392521730,1761606161802,-153.68002148,0.00014995,2]
[392521731,1761606161824,-82.5572932,0.00014995,2]
[392521732,1761606164452,-68.4427068,0.00014995,2]
[392521733,1761606164478,-237.65897571,0.00014995,2]
[392521734,1761606165508,-812893.18276391,0.00037135,50]
[392521735,1761606165536,-187106.81723609,0.00037135,50]
[392521737,1761606169405,-9.12404998,0.00014995,2]
[392521738,1761606169427,-207.34249043,0.00014995,2]
[392521739,1761606169557,-1000000.0,0.00037135,50]
[392521740,1761606172263,-11.41407211,0.00014995,2]
[392521741,1761606172289,-180.8347794,0.00014995,2]
[392521743,1761606176129,-999.0,0.00036986,120]
[392521744,1761606176159,-578057.74456687,0.00037135,50]
[392521745,1761606176190,-420943.25543313,0.00037135,50]
[392521746,1761606182043,-640.48464731,0.000371,120]
[392521747,1761606182072,-1344221.30636983,0.00037135,50]
[392521748,1761606182099,-1765164.56180296,0.00037135,50]
[392521749,1761606182124,-1765164.56180296,0.00037135,50]
[392521750,1761606182151,-1765164.56180296,0.00037135,50]
[392521751,1761606182178,-1765164.56180296,0.00037135,50]
[392521752,1761606182204,-1594479.96177102,0.00037135,50]
[392521753,1761606182871,1600.0,0.0002683,120]
[392521757,1761606199050,-4.25248987,0.00014995,2]
[392521758,1761606199077,-180.47779578,0.00014995,2]
[392521759,1761606201485,-151.0,0.00014995,2]
[392521760,1761606201512,-39.82,0.00014995,2]
[392521768,1761606258235,560.37325153,0.000149,2]
[392521777,1761606308687,150.0,0.00013488,2]
[392521778,1761606308768,150.0,0.00013488,2]
[392521779,1761606308832,150.0,0.00013488,2]
[392521781,1761606312052,150.0,0.00013488,2]
[392521782,1761606312113,152.18926861,0.00014986,2]
[392521783,1761606312815,-230.44,0.000324,30]
[392521784,1761606312882,-150.0,0.00034411,60]
[392521785,1761606312952,-230.44,0.000345,30]
[392521786,1761606313014,-447.62,0.000345,60]
[392521787,1761606313341,-230.44,0.00036,30]
[392521788,1761606313435,-320.24232366,0.000371,120]
[392521789,1761606313495,-500.0,0.00037127,120]
[392521790,1761606313553,-857.243442,0.00037127,120]
[392521791,1761606313613,-519.043334,0.00037127,120]
[392521792,1761606313674,-500.0,0.00037127,120]
[392521793,1761606313742,-170684.60003194,0.00037135,50]
[392521794,1761606313802,-1765164.56180296,0.00037135,50]
[392521795,1761606313863,-1765164.56180296,0.00037135,50]
[392521796,1761606313924,-162.35,0.00037135,120]
[392521797,1761606313982,-36494.90549494,0.00037151,31]
[392521798,1761606314048,-152.43,0.00037157,60]
[392521799,1761606314105,-354.81895561,0.00037161,120]
[392521800,1761606314163,-166.1,0.00037176,50]
[392521801,1761606314223,-156.07599657,0.00037176,30]
[392521802,1761606314286,-500.0,0.00037195,120]
[392521803,1761606314346,-172.3936493,0.00037198,50]
[392521804,1761606314408,-174.00213316,0.000372,120]
[392521805,1761606314469,-152.43,0.00037257,60]
[392521806,1761606314535,-230.44,0.000373,30]
[392521807,1761606314595,-152.43,0.00037357,60]
[392521808,1761606314656,-152.43,0.00037457,60]
[392521809,1761606314724,-152.43,0.00037557,60]
[392521810,1761606314789,-152.43,0.00037657,60]
[392521811,1761606314851,-152.43,0.00037757,60]
[392521812,1761606314912,-500.0,0.00037808,120]
[392521813,1761606314980,-152.43,0.00037857,60]
[392521814,1761606315040,-727.24,0.000379,120]
[392521815,1761606315099,-152.43,0.00037957,60]
[392521816,1761606315154,-510.28005216,0.00037998,120]
[392521817,1761606315210,-6904.46154339,0.00037999,120]
[392521818,1761606315268,-275.6514752,0.00038,120]
[392521819,1761606315324,-300.0,0.00038,120]
[392521820,1761606315398,-406.40043115,0.00038,120]
[392521821,1761606315461,-476.74869043,0.00038,30]
[392521822,1761606315524,-150.0,0.00038012,120]
[392521823,1761606315593,-152.43,0.00038057,60]
[392521824,1761606315664,-213.87449329,0.000381,33]
[392521825,1761606315725,-2164.32214536,0.000381,33]
[392521826,1761606315787,-152.43,0.00038157,60]
[392521827,1761606315846,-152.43,0.00038257,60]
[392521828,1761606315905,-500.0,0.00038284,120]
[392521829,1761606315963,-31753.26934479,0.000383,30]
[392521830,1761606316029,-152.43,0.00038357,120]
[392521831,1761606316090,-152.43,0.00038457,120]
[392521832,1761606316150,-180.162,0.00038525,52]
[392521833,1761606316212,-152.43,0.00038557,120]
[392521834,1761606316275,-230.44,0.000386,30]
[392521835,1761606316335,-500.0,0.0003863,120]
[392521836,1761606316400,-152.43,0.00038657,120]
[392521837,1761606316458,-500.0,0.00038675,120]
[392521838,1761606316514,-5529.0,0.000387,117]
[392521839,1761606316575,-152.43,0.00038757,120]
[392521840,1761606316636,-152.43,0.00038857,120]
[392521841,1761606316700,-469.549,0.00038888,30]
[392521842,1761606316769,-152.43,0.00038957,120]
[392521843,1761606316828,-444.0,0.00038996,90]
[392521844,1761606316890,-250.0,0.00039,120]
[392521845,1761606316955,-3039.71672938,0.00039,30]
[392521846,1761606317016,-1594.37099149,0.00039,120]
[392521847,1761606317079,-152.43,0.00039057,120]
[392521848,1761606317142,-150.0,0.00039109,120]
[392521849,1761606317206,-152.43,0.00039157,120]
[392521850,1761606317273,-152.43,0.00039257,120]
[392521851,1761606317333,-320.24232366,0.00039325,120]
[392521852,1761606317394,-152.43,0.00039357,120]
[392521853,1761606317452,-500.0,0.00039394,120]
[392521854,1761606317506,-500.0,0.00039452,120]
[392521855,1761606317568,-152.43,0.00039457,120]
[392521856,1761606317631,-150.0,0.000395,120]
[392521857,1761606317689,-515.0,0.000395,120]
[392521858,1761606317749,-152.43,0.00039557,120]
[392521859,1761606317809,-152.43,0.00039657,120]
[392521860,1761606317876,-152.43,0.00039757,120]
[392521861,1761606317935,-206.95849332,0.00039833,120]
[392521862,1761606317995,-152.43,0.00039857,120]
[392521863,1761606318055,-1011.07889082,0.000399,30]
[392521864,1761606318119,-152.43,0.00039957,120]
[392521865,1761606318185,-500.0,0.00039999,31]
[392521866,1761606318250,-566.2672956,0.00039999,31]
[392521867,1761606318310,-421.58959212,0.00039999,31]
[392521868,1761606318375,-428.8340642,0.00039999,31]
[392521869,1761606318438,-362.92059565,0.00039999,31]
[392521870,1761606318506,-404.75973358,0.00039999,31]
[392521871,1761606318572,-500.0,0.0004,30]
[392521872,1761606318645,-800.0,0.0004,30]
[392521873,1761606318712,-1800.0,0.0004,30]
[392521874,1761606318779,-800.0,0.0004,30]
[392521875,1761606318844,-1800.0,0.0004,30]
[392521876,1761606318910,-800.0,0.0004,30]
[392521877,1761606318972,-1800.0,0.0004,30]
[392521878,1761606319036,-800.0,0.0004,30]
[392521879,1761606319098,-1800.0,0.0004,30]
[392521880,1761606319161,-800.0,0.0004,30]
[392521881,1761606319230,-1800.0,0.0004,30]
[392521882,1761606319296,-900.0,0.0004,30]
[392521883,1761606319363,-800.0,0.0004,30]
[392521884,1761606319432,-1800.0,0.0004,30]
[392521885,1761606319508,-900.0,0.0004,30]
[392521886,1761606319750,-800.0,0.0004,30]
[392521887,1761606319807,-1800.0,0.0004,30]
[392521888,1761606319861,-900.0,0.0004,30]
[392521889,1761606319919,-800.0,0.0004,30]
[392521890,1761606319977,-1800.0,0.0004,30]
[392521891,1761606320031,-900.0,0.0004,30]
[392521893,1761606320086,-1800.0,0.0004,30]
[392521895,1761606320141,-900.0,0.0004,30]
[392521896,1761606320196,-900.0,0.0004,30]
[392521897,1761606320252,-1800.0,0.0004,30]
[392521898,1761606320307,-900.0,0.0004,30]
[392521899,1761606320369,-900.0,0.0004,30]
[392521900,1761606320426,-1800.0,0.0004,30]
[392521901,1761606320485,-800.0,0.0004,30]
[392521902,1761606320543,-900.0,0.0004,30]
[392521903,1761606320600,-1800.0,0.0004,30]
[392521904,1761606320658,-800.0,0.0004,30]
[392521905,1761606320715,-1800.0,0.0004,30]
[392521906,1761606320770,-500.0,0.0004,30]
[392521907,1761606320827,-800.0,0.0004,30]
[392521908,1761606320884,-900.0,0.0004,30]
[392521909,1761606320940,-1800.0,0.0004,30]
[392521910,1761606320997,-500.0,0.0004,30]
[392521911,1761606321054,-800.0,0.0004,30]
[392521912,1761606321111,-315.39185696,0.0004,30]
[392521913,1761606321166,-900.0,0.0004,30]
[392521914,1761606321221,-500.7,0.0004,30]
[392521915,1761606321275,-1800.0,0.0004,30]
[392521916,1761606321331,-500.0,0.0004,30]
[392521917,1761606321389,-800.0,0.0004,30]
[392521918,1761606321448,-4400.0,0.0004,30]
[392521919,1761606321505,-900.0,0.0004,30]
[392521920,1761606321563,-1800.0,0.0004,30]
[392521921,1761606321623,-500.0,0.0004,30]
[392521922,1761606321689,-900.0,0.0004,30]
[392521923,1761606321747,-4400.0,0.0004,30]
[392521924,1761606321802,-1800.0,0.0004,30]
[392521925,1761606321862,-500.0,0.0004,30]
[392521926,1761606321923,-900.0,0.0004,30]
[392521927,1761606321981,-4400.0,0.0004,30]
[392521928,1761606322038,-800.0,0.0004,30]
[392521929,1761606322094,-1800.0,0.0004,30]
[392521930,1761606322153,-500.0,0.0004,30]
[392521931,1761606322208,-900.0,0.0004,30]
[392521932,1761606322262,-4400.0,0.0004,30]
[392521933,1761606322316,-1800.0,0.0004,30]
[392521934,1761606322373,-558.13551783,0.0004,30]
[392521935,1761606322428,-800.0,0.0004,30]
[392521936,1761606322481,-900.0,0.0004,30]
[392521937,1761606322536,-4400.0,0.0004,30]
[392521938,1761606322590,-810.0,0.0004,30]
[392521939,1761606322644,-1800.0,0.0004,30]
[392521940,1761606322699,-800.0,0.0004,30]
[392521941,1761606322755,-900.0,0.0004,30]
[392521942,1761606322809,-4400.0,0.0004,30]
[392521943,1761606322864,-500.0,0.0004,30]
[392521944,1761606322923,-168.45246627,0.0004,30]
[392521945,1761606322980,-1800.0,0.0004,30]
[392521946,1761606323038,-900.0,0.0004,30]
[392521947,1761606323093,-500.0,0.0004,30]
[392521948,1761606323151,-1300.0,0.0004,30]
[392521949,1761606323208,-500.0,0.0004,30]
[392521950,1761606323266,-4400.0,0.0004,30]
[392521951,1761606323325,-500.0,0.0004,30]
[392521952,1761606323385,-1800.0,0.0004,30]
[392521953,1761606323443,-800.0,0.0004,30]
[392521954,1761606323504,-900.0,0.0004,30]
[392521955,1761606323568,-500.0,0.0004,30]
[392521956,1761606323632,-1300.0,0.0004,30]
[392521957,1761606323694,-588.10230962,0.0004,30]
[392521958,1761606323756,-4400.0,0.0004,30]
[392521959,1761606323819,-1800.0,0.0004,30]
[392521960,1761606323880,-600.0,0.0004,30]
[392521961,1761606323942,-800.0,0.0004,30]
[392521962,1761606324002,-900.0,0.0004,30]
[392521963,1761606324067,-1300.0,0.0004,30]
[392521964,1761606324134,-4400.0,0.0004,30]
[392521965,1761606324199,-600.0,0.0004,30]
[392521966,1761606324261,-800.0,0.0004,30]
[392521967,1761606324322,-1800.0,0.0004,30]
[392521968,1761606324386,-1300.0,0.0004,30]
[392521969,1761606324451,-900.0,0.0004,30]
[392521970,1761606324517,-4400.0,0.0004,30]
[392521971,1761606324586,-600.0,0.0004,30]
[392521972,1761606324652,-800.0,0.0004,30]
[392521973,1761606324718,-1800.0,0.0004,30]
[392521974,1761606324778,-900.0,0.0004,30]
[392521975,1761606324837,-1300.0,0.0004,30]
[392521976,1761606324903,-4400.0,0.0004,30]
[392521977,1761606324968,-600.0,0.0004,30]
[392521978,1761606325034,-800.0,0.0004,30]
[392521979,1761606325096,-900.0,0.0004,30]
[392521980,1761606325156,-1300.0,0.0004,30]
[392521981,1761606325213,-1800.0,0.0004,30]
[392521982,1761606325274,-4400.0,0.0004,30]
[392521983,1761606325334,-800.0,0.0004,30]
[392521984,1761606325398,-900.0,0.0004,30]
[392521985,1761606325469,-1300.0,0.0004,30]
[392521986,1761606325527,-4400.0,0.0004,30]
[392521987,1761606325590,-1800.0,0.0004,30]
[392521988,1761606325651,-800.0,0.0004,30]
[392521989,1761606325708,-600.0,0.0004,30]
[392521990,1761606325766,-1300.0,0.0004,30]
[392521991,1761606325826,-900.0,0.0004,30]
[392521992,1761606326032,-1800.0,0.0004,30]
[392521993,1761606326091,-500.0,0.0004,30]
[392521994,1761606326147,-4400.0,0.0004,30]
[392521995,1761606326205,-600.0,0.0004,30]
[392521996,1761606326264,-800.0,0.0004,30]
[392521997,1761606326324,-1300.0,0.0004,30]
[392521998,1761606326386,-1449.49571113,0.0004,30]
[392521999,1761606326448,-3090.73147478,0.0004,30]
[392522000,1761606326513,-4400.0,0.0004,30]
[392522001,1761606326574,-600.0,0.0004,30]
[392522002,1761606326638,-531.10381072,0.0004,30]
[392522003,1761606326930,168.38036015,0.000149,2]
[392522004,1761606327156,150.00000001,0.00013488,2]
[392522005,1761606327194,150.0,0.00013488,2]
[392522006,1761606327228,286.65334943,0.00013488,2]
[392522007,1761606327262,150.0,0.00013488,2]
[392522008,1761606327575,150.0,0.00013488,2]
[392522009,1761606327866,1402.58579922,0.000149,2]
[392522011,1761606328131,150.0,0.00013488,2]
[392522012,1761606328166,153.73969324,0.00013488,2]
[392522013,1761606328206,150.0,0.00013488,2]
[392522014,1761606328681,-768.89618928,0.0004,30]
[392522015,1761606328743,-800.0,0.0004,30]
[392522016,1761606328805,-4400.0,0.0004,30]
[392522017,1761606328868,-600.0,0.0004,30]
[392522018,1761606328932,-1300.0,0.0004,30]
[392522019,1761606328993,-800.0,0.0004,30]
[392522020,1761606329052,-165.05424317,0.0004,30]
[392522021,1761606329115,-218.60771995,0.0004,30]
[392522022,1761606329175,-600.0,0.0004,30]
[392522023,1761606329232,-4400.0,0.0004,30]
[392522024,1761606329292,-1300.0,0.0004,30]
[392522025,1761606329348,-291.25984997,0.0004,30]
[392522026,1761606329410,-800.0,0.0004,30]
[392522027,1761606329473,-600.0,0.0004,30]
[392522028,1761606329537,-500.0,0.0004,30]
[392522029,1761606329599,-600.0,0.0004,30]
[392522030,1761606329664,-4400.0,0.0004,30]
[392522031,1761606329722,-1300.0,0.0004,30]
[392522032,1761606329783,-600.0,0.0004,30]
[392522033,1761606329844,-947.01205333,0.0004,30]
[392522034,1761606329905,-600.0,0.0004,30]
[392522035,1761606329963,-1300.0,0.0004,30]
[392522036,1761606330018,-4400.0,0.0004,30]
[392522037,1761606330075,-600.0,0.0004,30]
[392522038,1761606330132,-500.0,0.0004,30]
[392522039,1761606330189,-600.0,0.0004,30]
[392522040,1761606330243,-1300.0,0.0004,30]
[392522041,1761606330298,-4400.0,0.0004,30]
[392522042,1761606330357,-600.0,0.0004,30]
[392522043,1761606330418,-600.0,0.0004,30]
[392522044,1761606330478,-1300.0,0.0004,30]
[392522045,1761606330540,-4400.0,0.0004,30]
[392522046,1761606330789,-600.0,0.0004,30]
[392522047,1761606330849,-600.0,0.0004,30]
[392522048,1761606330911,-4400.0,0.0004,30]
[392522049,1761606330971,-600.0,0.0004,30]
[392522050,1761606331030,-500.0,0.0004,30]
[392522051,1761606331090,-600.0,0.0004,30]
[392522052,1761606331147,-4400.0,0.0004,30]
[392522053,1761606331204,-500.0,0.0004,30]
[392522054,1761606331260,-600.0,0.0004,30]
[392522055,1761606331316,-600.0,0.0004,30]
[392522056,1761606331374,-500.0,0.0004,30]
[392522057,1761606331432,-4400.0,0.0004,30]
[392522058,1761606331488,-500.0,0.0004,30]
[392522059,1761606331546,-600.0,0.0004,30]
[392522060,1761606331603,-600.0,0.0004,30]
[392522061,1761606331663,-500.0,0.0004,30]
[392522062,1761606331720,-500.0,0.0004,30]
[392522063,1761606331778,-1300.0,0.0004,30]
[392522064,1761606331840,-4400.0,0.0004,30]
[392522065,1761606331899,-600.0,0.0004,30]
[392522066,1761606331962,-500.0,0.0004,30]
[392522067,1761606332023,-600.0,0.0004,30]
[392522068,1761606332086,-500.0,0.0004,30]
[392522069,1761606332142,-500.0,0.0004,30]
[392522070,1761606332199,-4400.0,0.0004,30]
[392522071,1761606332257,-1300.0,0.0004,30]
[392522072,1761606332312,-800.0,0.0004,30]
[392522073,1761606332369,-600.0,0.0004,30]
[392522074,1761606332425,-500.0,0.0004,30]
[392522075,1761606332480,-600.0,0.0004,30]
[392522076,1761606332538,-500.0,0.0004,30]
[392522077,1761606332593,-1300.0,0.0004,30]
[392522078,1761606332653,-500.0,0.0004,30]
[392522079,1761606332711,-600.0,0.0004,30]
[392522080,1761606332769,-500.0,0.0004,30]
[392522081,1761606332826,-4400.0,0.0004,30]
[392522082,1761606332885,-600.0,0.0004,30]
[392522083,1761606332941,-500.0,0.0004,30]
[392522084,1761606332995,-500.0,0.0004,30]
[392522085,1761606333054,-500.0,0.0004,30]
[392522086,1761606333114,-600.0,0.0004,30]
[392522087,1761606333171,-4400.0,0.0004,30]
[392522088,1761606333229,-500.0,0.0004,30]
[392522089,1761606333301,-1300.0,0.0004,30]
[392522090,1761606333365,-800.0,0.0004,30]
[392522091,1761606333428,-500.0,0.0004,30]
[392522092,1761606333492,-600.0,0.0004,30]
[392522093,1761606333554,-500.0,0.0004,30]
[392522094,1761606333618,-600.0,0.0004,30]
[392522095,1761606333683,-500.0,0.0004,30]
[392522096,1761606333745,-8327.95624132,0.0004,30]
[392522097,1761606333803,-1300.0,0.0004,30]
[392522098,1761606333863,-800.0,0.0004,30]
[392522099,1761606333925,-500.0,0.0004,30]
[392522100,1761606333987,-600.0,0.0004,30]
[392522101,1761606334050,-500.0,0.0004,30]
[392522102,1761606334112,-600.0,0.0004,30]
[392522103,1761606334173,-500.0,0.0004,30]
[392522104,1761606334230,-1300.0,0.0004,30]
[392522105,1761606334289,-500.0,0.0004,30]
[392522106,1761606334349,-800.0,0.0004,30]
[392522107,1761606334411,-600.0,0.0004,30]
[392522108,1761606334473,-500.0,0.0004,30]
[392522109,1761606334537,-600.0,0.0004,30]
[392522110,1761606334598,-510.00335347,0.0004,30]
[392522111,1761606334658,-1300.0,0.0004,30]
[392522112,1761606334718,-800.0,0.0004,30]
[392522113,1761606334779,-600.0,0.0004,30]
[392522114,1761606334838,-500.0,0.0004,30]
[392522115,1761606334897,-600.0,0.0004,30]
[392522116,1761606334960,-1300.0,0.0004,30]
[392522117,1761606335025,-800.0,0.0004,30]
[392522118,1761606335084,-600.0,0.0004,30]
[392522119,1761606335143,-500.0,0.0004,30]
[392522120,1761606335201,-600.0,0.0004,30]
[392522121,1761606335260,-1300.0,0.0004,30]
[392522122,1761606335320,-800.0,0.0004,30]
[392522123,1761606335381,-600.0,0.0004,30]
[392522124,1761606335442,-500.0,0.0004,30]
[392522125,1761606335503,-1300.0,0.0004,30]
[392522126,1761606335559,-800.0,0.0004,30]
[392522127,1761606335618,-600.0,0.0004,30]
[392522128,1761606335676,-600.0,0.0004,30]
[392522129,1761606335736,-500.0,0.0004,30]
[392522130,1761606335794,-1300.0,0.0004,30]
[392522131,1761606335850,-800.0,0.0004,30]
[392522132,1761606335908,-600.0,0.0004,30]
[392522133,1761606335969,-600.0,0.0004,30]
[392522134,1761606336025,-500.0,0.0004,30]
[392522135,1761606336084,-800.0,0.0004,30]
[392522136,1761606336142,-1300.0,0.0004,30]
[392522137,1761606336200,-600.0,0.0004,30]
[392522138,1761606336259,-661.00397295,0.0004,30]